bitfinex/quotes_SOLUSD_20241225
["timestamp","ask_amount","ask_price","bid_price","bid_amount"]
[1735085209755,4.76735398,196.65,196.55,9.95070365]
[1735085212684,3.8138,196.65,196.55,9.95070365]
[1735085213191,4.76736277,196.65,196.55,9.95070365]
[1735085213483,3.8138,196.65,196.55,9.95070365]
[1735085214662,4.76735478,196.65,196.55,9.95070365]
[1735085214886,4.76735478,196.65,196.53,23.776884]
[1735085215368,4.76735478,196.65,196.54,9.95070365]
[1735085217086,3.8138,196.65,196.56,9.95070365]
[1735085217392,3.8138,196.65,196.57,0.76282013]
[1735085221595,3.8138,196.65,196.57,10.71352378]
[1735085221786,6.4485,196.66,196.57,10.71352378]
[1735085221963,6.4485,196.66,196.59,9.95070365]
[1735085222290,6.3884,196.74,196.65,23.776884]
[1735085222594,6.3884,196.74,196.67,9.95070365]
[1735085225066,0.95311422,196.73,196.65,9.95070365]
[1735085225892,6.3884,196.74,196.65,9.95070365]
[1735085226792,6.3884,196.74,196.64,23.776884]
[1735085227099,6.3884,196.74,196.66,9.95070365]
[1735085227595,7.34152153,196.74,196.66,9.95070365]
[1735085228700,6.3884,196.74,196.66,9.95070365]
[1735085229902,3.8119,196.76,196.68,9.95070365]
[1735085230193,0.95313157,196.8,196.68,9.95070365]
[1735085230194,3.8112,196.79,196.68,9.95070365]
[1735085230385,0.95291386,196.78,196.68,9.95070365]
[1735085230585,4.76411386,196.79,196.68,9.95070365]
[1735085232267,3.8112,196.79,196.69,23.776884]
[1735085232462,3.8112,196.79,196.69,24.5392128]
[1735085232992,3.8112,196.79,196.7,9.95070365]
[1735085233164,0.95284274,196.84,196.75,9.95070365]
[1735085233367,4.76284274,196.85,196.75,9.95070365]
[1735085234831,4.76284274,196.85,196.75,10.71279249]
[1735085235396,3.81,196.85,196.75,10.71279249]
[1735085235593,6.0052,196.86,196.77,9.95070365]
[1735085235808,6.0052,196.86,196.77,10.7127168]
[1735085242027,4.8880118,196.85,196.72,0.76201744]
[1735085242304,0.12549,196.83,196.69,9.95070365]
[1735085242467,1.07843205,196.83,196.69,9.95070365]
[1735085243175,3.8105,196.82,196.69,9.95070365]
[1735085243378,0.95282897,196.81,196.69,9.95070365]
[1735085243601,0.95282897,196.81,196.7,24.53914511]
[1735085243803,3.8105,196.82,196.71,9.95070365]
[1735085244011,0.95278944,196.81,196.71,9.95070365]
[1735085244509,3.8105,196.82,196.71,9.95070365]
[1735085245410,0.95278669,196.81,196.71,9.95070365]
[1735085246913,3.8105,196.82,196.71,9.95070365]
[1735085247117,0.95278773,196.81,196.71,9.95070365]
[1735085247711,3.8109,196.8,196.7,23.776884]
[1735085247892,0.95296287,196.79,196.68,9.95070365]
[1735085248089,6.0333,196.78,196.66,9.95070365]
[1735085248313,0.95306503,196.77,196.66,9.95070365]
[1735085249217,0.95306503,196.77,196.64,0.76245202]
[1735085249218,4.76466503,196.77,196.64,0.76245202]
[1735085249408,4.76466503,196.77,196.65,9.95070365]
[1735085250816,3.8119,196.75,196.65,9.95070365]
[1735085251016,0.95323193,196.74,196.63,9.95070365]
[1735085252319,0.95323193,196.74,196.65,9.95070365]
[1735085253622,3.8119,196.75,196.65,9.95070365]
[1735085253799,6.0333,196.78,196.63,23.776884]
[1735085253800,6.0333,196.78,196.67,9.95070365]
[1735085254005,6.0333,196.78,196.69,9.95070365]
[1735085256136,6.9862509,196.78,196.69,9.95070365]
[1735085260121,6.9862509,196.78,196.68,9.95070365]
[1735085260707,3.8115,196.77,196.63,23.776884]
[1735085261028,3.8115,196.77,196.65,9.95070365]
[1735085261029,0.95314798,196.76,196.65,9.95070365]
[1735085262642,3.8119,196.75,196.65,9.95070365]
[1735085262843,0.95316816,196.74,196.65,9.95070365]
[1735085263924,3.8119,196.75,196.63,0.76251838]
[1735085264143,3.8119,196.75,196.61,9.95070365]
[1735085264144,0.12549,196.72,196.61,9.95070365]
[1735085265054,3.8127,196.71,196.61,9.95070365]
[1735085265347,0.95337262,196.7,196.61,9.95070365]
[1735085267452,3.8127,196.71,196.63,9.95070365]
[1735085267623,0.95323508,196.7,196.61,0.76258806]
[1735085267820,0.95323508,196.7,196.63,9.95070365]
[1735085268454,0.95323508,196.7,196.61,9.95070365]
[1735085271061,0.95323508,196.7,196.63,9.95070365]
[1735085272162,3.8127,196.71,196.63,9.95070365]
[1735085272565,3.8121,196.74,196.67,9.95070365]
[1735085272772,0.95309263,196.77,196.69,9.95070365]
[1735085273100,3.8115,196.77,196.69,9.95070365]
[1735085274462,3.8115,196.77,196.67,23.776884]
[1735085274767,3.8115,196.77,196.68,9.95070365]
[1735085277484,6.0333,196.78,196.7,9.95070365]
[1735085279553,9.8448,196.78,196.65,30.0]
[1735085279881,9.8448,196.78,196.68,9.95070365]
[1735085279882,0.95282211,196.77,196.68,9.95070365]
[1735085280057,0.12549,196.76,196.66,9.95070365]
[1735085280374,0.12549,196.76,196.64,9.95070365]
[1735085280773,0.12549,196.76,196.61,0.76258845]
[1735085281077,23.902374,196.74,196.59,1.6404]
[1735085281378,0.95341673,196.73,196.6,9.95070365]
[1735085281564,23.776884,196.76,196.6,9.95070365]
[1735085281766,3.93759,196.74,196.6,9.95070365]
[1735085281976,0.95330889,196.73,196.6,9.95070365]
[1735085282150,0.95330889,196.73,196.62,9.95070365]
[1735085282553,0.95330889,196.73,196.62,10.71333342]
[1735085283885,0.95330889,196.73,196.64,9.95070365]
[1735085284789,3.8121,196.74,196.64,9.95070365]
[1735085285085,3.8121,196.74,196.65,9.95070365]
[1735085285783,0.95317389,196.73,196.65,9.95070365]
[1735085285967,11.56069,196.76,196.63,9.95070365]
[1735085286155,11.56069,196.76,196.6,0.76253911]
[1735085286156,0.12549,196.74,196.6,0.76253911]
[1735085286479,23.902374,196.72,196.6,9.95070365]
[1735085286674,23.902374,196.72,196.58,10.71341111]
[1735085286675,6.12569,196.7,196.58,10.71341111]
[1735085286973,0.9535102,196.69,196.58,10.71341111]
[1735085287864,3.8133,196.68,196.58,10.71341111]
[1735085288050,0.9534596,196.67,196.58,10.71341111]
[1735085288254,0.9534596,196.67,196.59,15.53969778]
[1735085289482,3.8133,196.68,196.61,15.53969778]
[1735085290687,6.0002,196.7,196.61,15.53969778]
[1735085290873,6.95350217,196.7,196.61,15.53969778]
[1735085291184,0.9533428,196.69,196.59,15.53969778]
[1735085292561,4.7664428,196.69,196.59,15.53969778]
[1735085294102,3.8134,196.67,196.59,15.53969778]
[1735085294258,0.9535567,196.66,196.59,15.53969778]
[1735085295189,0.9535567,196.66,196.57,15.53969778]
[1735085295190,3.8138,196.65,196.57,15.53969778]
[1735085295363,0.95360128,196.64,196.57,15.53969778]
[1735085295889,0.95360128,196.64,196.55,15.53969778]
[1735085296365,0.12549,196.63,196.55,15.53969778]
[1735085296572,0.12549,196.63,196.53,15.53969778]
[1735085297090,6.0002,196.63,196.53,15.53969778]
[1735085297389,0.95378222,196.62,196.53,15.53969778]
[1735085297583,4.76828222,196.62,196.53,15.53969778]
[1735085298289,4.76828222,196.62,196.52,1.43391166]
[1735085298462,0.12549,196.61,196.52,0.670886]
[1735085299476,3.8148,196.6,196.52,0.670886]
[1735085301477,0.95385451,196.59,196.52,0.670886]
[1735085301679,0.95385954,196.62,196.52,16.21058378]
[1735085303571,9.8144,196.63,196.54,15.53969778]
[1735085304390,3.8136,196.67,196.56,15.53969778]
[1735085304575,3.8136,196.67,196.58,15.53969778]
[1735085305110,4.76706608,196.67,196.58,15.53969778]
[1735085305595,3.8136,196.67,196.58,15.53969778]
[1735085308309,6.207,196.68,196.6,15.53969778]
[1735085308676,6.207,196.68,196.61,16.30235664]
[1735085308913,3.8129,196.7,196.61,16.30235664]
[1735085310513,3.8129,196.7,196.63,15.53969778]
[1735085310691,3.8129,196.7,196.62,15.53969778]
[1735085311106,0.95329262,196.72,196.62,15.53969778]
[1735085313714,7.04442017,196.83,196.72,15.53969778]
[1735085314221,3.93599,196.82,196.7,15.53969778]
[1735085314392,0.95292591,196.81,196.7,15.53969778]
[1735085315535,4.763336,196.82,196.72,15.53969778]
[1735085315835,6.0915,196.83,196.74,15.53969778]
[1735085316585,6.0915,196.83,196.75,39.31658178]
[1735085316790,3.8099,196.86,196.76,15.53969778]
[1735085317429,3.8099,196.86,196.77,15.53969778]
[1735085320286,3.8099,196.86,196.76,16.30174681]
[1735085321324,0.95255364,196.85,196.76,15.53969778]
[1735085321820,4.76255523,196.86,196.76,16.30182197]
[1735085321996,3.8099,196.86,196.76,16.30182197]
[1735085322201,3.8099,196.86,196.78,15.53969778]
[1735085324821,3.8099,196.86,196.77,23.776884]
[1735085330029,3.8102,196.84,196.76,15.53969778]
[1735085330206,3.8102,196.84,196.75,138.3]
[1735085330207,0.95275015,196.83,196.75,138.3]
[1735085330408,0.95275015,196.83,196.69,30.0]
[1735085330606,0.12549,196.82,196.71,15.53969778]
[1735085331531,3.8107,196.81,196.71,15.53969778]
[1735085331711,0.95285266,196.8,196.71,15.53969778]
[1735085331917,3.8107,196.81,196.71,15.53969778]
[1735085332236,3.8107,196.81,196.7,9.93381777]
[1735085332237,0.95283119,196.8,196.7,9.93381777]
[1735085332531,7.29113119,196.8,196.68,11.49091777]
[1735085333721,3.8111,196.79,196.68,11.49091777]
[1735085334024,0.95296024,196.78,196.68,11.49091777]
[1735085334226,3.8111,196.79,196.68,17.08166116]
[1735085334227,4.76406028,196.79,196.68,17.08166116]
[1735085334407,4.76406028,196.79,196.69,0.76233556]
[1735085336834,4.76406028,196.79,196.7,15.52456116]
[1735085337020,6.3383,196.8,196.71,23.776884]
[1735085338736,6.3383,196.8,196.7,15.52456116]
[1735085338919,0.95283458,196.79,196.7,15.52456116]
[1735085339119,0.95283458,196.79,196.68,15.52456116]
[1735085339335,0.95283458,196.79,196.66,15.52456116]
[1735085339524,2.98603241,196.79,196.66,15.52456116]
[1735085340409,3.8113,196.78,196.66,15.52456116]
[1735085340612,0.95302823,196.77,196.67,0.76242258]
[1735085341635,0.95302823,196.77,196.68,15.52456116]
[1735085341636,3.8117,196.76,196.68,15.52456116]
[1735085344548,0.95307201,196.79,196.68,15.52456116]
[1735085344838,3.8112,196.79,196.69,24.53919809]
[1735085345144,0.95285577,196.78,196.69,24.53919809]
[1735085345541,4.7641486,196.79,196.69,24.53919809]
[1735085347338,6.3383,196.8,196.71,23.776884]
[1735085347543,6.3383,196.8,196.72,15.52456116]
[1735085348735,6.1774,196.85,196.74,15.52456116]
[1735085349516,0.95262081,196.84,196.74,15.52456116]
[1735085349817,0.95262081,196.84,196.73,24.53904938]
[1735085350443,3.8103,196.83,196.73,24.53904938]
[1735085350749,3.8103,196.83,196.74,15.52456116]
[1735085351640,0.95262081,196.84,196.75,162.076884]
[1735085351843,7.12998416,196.85,196.76,15.52456116]
[1735085352645,7.12998416,196.85,196.74,39.30144516]
[1735085352950,4.7628809,196.84,196.72,17.08456116]
[1735085353343,4.7628809,196.84,196.73,0.76225106]
[1735085355954,3.8102,196.84,196.74,15.52456116]
[1735085356150,3.8102,196.84,196.75,10.69104423]
[1735085356947,6.1774,196.85,196.75,10.69104423]
[1735085358451,3.8102,196.84,196.75,10.69104423]
[1735085358642,0.95262797,196.83,196.69,169.06210237]
[1735085358945,0.95262797,196.83,196.73,9.92896423]
[1735085359249,0.95278919,196.84,196.73,10.69111825]
[1735085359451,3.8105,196.82,196.73,10.69111825]
[1735085361055,6.1774,196.85,196.75,9.92896423]
[1735085361246,6.1774,196.85,196.75,10.69103493]
[1735085362944,4.76278221,196.84,196.75,0.7620707]
[1735085363252,4.76278221,196.84,196.74,23.776884]
[1735085363636,3.8102,196.84,196.74,23.776884]
[1735085364954,3.8102,196.84,196.75,0.76210518]
[1735085365157,3.8102,196.84,196.76,23.776884]
[1735085371131,3.8102,196.84,196.7,138.3]
[1735085371132,4.7627678,196.84,196.7,138.3]
[1735085371460,0.12549,196.83,196.7,138.3]
[1735085371636,0.12549,196.81,196.67,31.5114]
[1735085371836,0.12549,196.81,196.68,0.76235135]
[1735085372253,0.12549,196.81,196.67,11.44036423]
[1735085372634,0.12549,196.77,196.64,0.76242306]
[1735085372840,1.07864236,196.77,196.64,10.69138729]
[1735085373073,0.12549,196.75,196.58,168.3]
[1735085373242,1.07880251,196.75,196.61,9.92896423]
[1735085374174,3.8121,196.74,196.62,15.53607113]
[1735085374464,0.95328175,196.73,196.62,15.53607113]
[1735085374665,3.8121,196.74,196.64,15.53607113]
[1735085374972,3.8121,196.74,196.65,16.29854024]
[1735085375173,0.95308639,196.77,196.66,15.53607113]
[1735085375377,0.95308639,196.77,196.67,0.76243129]
[1735085377870,3.93719,196.76,196.63,153.83607113]
[1735085378035,0.12549,196.74,196.63,138.3]
[1735085378466,0.12549,196.74,196.6,15.53607113]
[1735085379269,3.8123,196.73,196.6,16.29874744]
[1735085379566,0.95332834,196.72,196.6,16.29874744]
[1735085380368,3.8123,196.73,196.62,15.53607113]
[1735085380566,3.8123,196.73,196.64,15.53607113]
[1735085380768,3.8123,196.73,196.65,16.29860282]
[1735085381070,0.95311837,196.76,196.65,16.29860282]
[1735085381746,3.8117,196.77,196.66,23.776884]
[1735085381747,4.76473801,196.77,196.66,23.776884]
[1735085381950,4.76473801,196.77,196.67,0.76240705]
[1735085383278,3.8117,196.77,196.67,16.29847818]
[1735085384257,3.8117,196.77,196.68,23.776884]
[1735085385088,3.8117,196.77,196.68,39.31295513]
[1735085385379,3.8117,196.77,196.69,0.76230803]
[1735085388686,0.95292227,196.76,196.66,138.3]
[1735085389658,0.12549,196.75,196.61,15.53607113]
[1735085389856,0.9533126,196.74,196.61,15.53607113]
[1735085390884,4.76560446,196.73,196.61,15.53607113]
[1735085391783,4.76560446,196.73,196.63,15.53607113]
[1735085391982,4.76496196,196.77,196.67,15.53607113]
[1735085392289,4.76496196,196.77,196.64,153.83607113]
[1735085393470,4.76496196,196.77,196.65,0.76247625]
[1735085394795,3.8117,196.77,196.66,23.776884]
[1735085394957,3.8117,196.77,196.67,0.76237689]
[1735085395389,0.95298845,196.76,196.66,39.31295513]
[1735085395581,3.8117,196.77,196.66,69.31295513]
[1735085395775,4.76467702,196.77,196.66,69.31295513]
[1735085396570,3.8117,196.77,196.66,70.07535852]
[1735085397277,3.8117,196.77,196.68,15.53607113]
[1735085397467,6.0042,196.78,196.69,24.53919354]
[1735085397871,6.0042,196.78,196.71,23.776884]
[1735085398081,6.0042,196.78,196.72,0.7622176]
[1735085398700,3.8108,196.81,196.72,0.7622176]
[1735085399079,3.8108,196.81,196.71,23.776884]
[1735085399590,6.2196,196.82,196.73,15.53607113]
[1735085399795,6.2196,196.82,196.73,23.776884]
[1735085399957,0.9527128,196.81,196.72,0.76222628]
[1735085400159,0.9527128,196.81,196.71,153.83607113]
[1735085400160,10.0302,196.82,196.71,153.83607113]
[1735085400355,0.95277999,196.81,196.71,153.83607113]
[1735085400580,10.0302,196.82,196.71,153.83607113]
[1735085400991,0.95278325,196.81,196.71,153.83607113]
[1735085401183,10.0302,196.82,196.71,153.83607113]
[1735085402873,6.2196,196.82,196.72,70.07515559]
[1735085403080,3.8099,196.86,196.76,23.776884]
[1735085403293,4.7624421,196.86,196.75,0.76203368]
[1735085403588,0.12549,196.85,196.74,138.3]
[1735085403797,0.95277039,196.84,196.74,138.3]
[1735085404667,3.8103,196.83,196.74,138.3]
[1735085407903,3.8103,196.83,196.73,23.776884]
[1735085408092,0.95269991,196.82,196.73,0.76215993]
[1735085408406,0.95269991,196.82,196.71,23.776884]
[1735085412200,0.95269991,196.82,196.72,0.76221716]
[1735085412902,3.8103,196.83,196.73,23.776884]
[1735085413308,0.9526834,196.82,196.72,0.76221716]
[1735085413493,0.9526834,196.82,196.72,23.776884]
[1735085413691,0.9526834,196.82,196.71,0.76221363]
[1735085413885,0.9526834,196.82,196.68,10.69571233]
[1735085415011,3.8107,196.81,196.68,10.69571233]
[1735085415215,6.0965,196.79,196.68,0.76235018]
[1735085415386,0.95304978,196.78,196.65,150.59790197]
[1735085415586,0.95304978,196.78,196.65,149.83546215]
[1735085415986,0.95304978,196.78,196.66,0.76244308]
[1735085416516,0.95304978,196.78,196.67,9.93336215]
[1735085416517,3.8115,196.77,196.67,9.93336215]
[1735085416686,7.85923751,196.83,196.76,23.776884]
[1735085417015,7.85923751,196.83,196.74,9.93336215]
[1735085417415,7.85923751,196.83,196.73,9.93336215]
[1735085417713,9.9066,196.85,196.74,23.776884]
[1735085418902,9.9066,196.85,196.73,10.69551118]
[1735085419116,0.12549,196.84,196.73,0.76214903]
[1735085419422,0.12549,196.84,196.7,9.93336215]
[1735085420609,3.8103,196.83,196.7,9.93336215]
[1735085420808,0.95281383,196.82,196.7,9.93336215]
[1735085421122,0.95281383,196.82,196.71,9.93336215]
[1735085421419,3.8103,196.83,196.72,33.71024615]
[1735085421626,0.95275165,196.82,196.72,33.71024615]
[1735085421835,0.95275165,196.82,196.69,138.3]
[1735085422009,0.95275165,196.82,196.7,9.93336215]
[1735085422530,0.95275165,196.82,196.69,138.3]
[1735085422531,3.8107,196.81,196.69,9.93336215]
[1735085422821,0.95297544,196.8,196.68,9.93336215]
[1735085423131,6.4573,196.79,196.67,9.93336215]
[1735085423311,0.95303918,196.78,196.67,9.93336215]
[1735085423721,0.95303918,196.78,196.68,9.93336215]
[1735085424721,0.95303918,196.78,196.69,9.93336215]
[1735085424896,4.76443918,196.78,196.69,9.93336215]
[1735085425102,3.8114,196.78,196.69,9.93336215]
[1735085425531,7.41024195,196.79,196.71,9.93336215]
[1735085425532,6.4573,196.79,196.71,9.93336215]
[1735085429405,3.8107,196.81,196.73,9.93336215]
[1735085441638,0.95280504,196.8,196.7,9.93336215]
[1735085442823,3.8111,196.79,196.7,9.93336215]
[1735085444446,3.8111,196.79,196.72,9.93336215]
[1735085445761,4.76349128,196.82,196.72,10.69556633]
[1735085445971,4.76349128,196.82,196.74,9.93336215]
[1735085448575,3.8106,196.82,196.75,9.93336215]
[1735085451874,3.8106,196.82,196.74,9.93336215]
[1735085452680,3.8106,196.82,196.75,9.93336215]
[1735085455480,3.8106,196.82,196.76,9.93336215]
[1735085455672,6.4573,196.84,196.77,9.93336215]
[1735085455894,3.81,196.85,196.78,10.6954182]
[1735085456174,3.81,196.85,196.79,9.93336215]
[1735085456392,7.85923751,196.86,196.81,9.93336215]
[1735085456904,3.8095,196.88,196.81,9.93336215]
[1735085457119,3.8095,196.88,196.82,9.93336215]
[1735085457504,3.8095,196.88,196.81,9.93336215]
[1735085458777,3.8095,196.88,196.8,9.93336215]
[1735085462113,3.8095,196.88,196.81,9.93336215]
[1735085462322,3.8095,196.88,196.82,9.93336215]
[1735085462603,3.8095,196.88,196.81,9.93336215]
[1735085463431,3.8089,196.91,196.84,9.93336215]
[1735085464294,3.8089,196.91,196.85,9.93336215]
[1735085464594,3.8089,196.91,196.86,9.93336215]
[1735085464904,12.26320121,196.94,196.87,9.93336215]
[1735085465439,2.03820121,196.94,196.9,9.93336215]
[1735085465599,7.85923751,196.95,196.92,9.93336215]
[1735085466523,7.85923751,196.95,196.93,9.93336215]
[1735085466696,7.85923751,197.0,196.93,9.93336215]
[1735085467531,3.8069,197.02,196.93,9.93336215]
[1735085468033,4.75806978,197.04,196.92,0.76141582]
[1735085468200,4.75806978,197.04,196.94,9.93336215]
[1735085468616,4.75806978,197.04,196.93,9.93336215]
[1735085471540,4.75806978,197.04,196.94,9.93336215]
[1735085472646,3.8063,197.04,196.95,34.4716315]
[1735085473545,3.8063,197.04,196.95,24.53826935]
[1735085473845,3.8063,197.04,196.95,34.4716315]
[1735085474544,3.8057,197.07,196.97,9.93336215]
[1735085475552,3.8057,197.07,196.98,0.76122159]
[1735085476083,3.8057,197.07,196.98,10.69458374]
[1735085476657,3.8057,197.07,196.98,0.76122159]
[1735085476884,3.8057,197.07,196.99,11.58886215]
[1735085478361,3.8057,197.07,196.99,1.6555]
[1735085479057,10.1648,197.07,196.96,0.7612646]
[1735085479253,10.1648,197.07,196.93,6.3925]
[1735085479254,0.12549,197.04,196.93,7.15375465]
[1735085479463,1.07726084,197.04,196.93,0.76125465]
[1735085479900,1.07726084,197.04,196.93,10.6946168]
[1735085480401,1.07726084,197.04,196.94,9.93336215]
[1735085480701,3.8065,197.03,196.94,9.93336215]
[1735085481009,3.8065,197.03,196.95,34.47163304]
[1735085482305,3.8065,197.03,196.95,10.69474904]
[1735085484307,3.8065,197.03,196.95,0.76138689]
[1735085484485,3.8069,197.01,196.91,1.5556]
[1735085484681,3.8069,197.01,196.92,9.93336215]
[1735085484880,3.8069,197.01,196.91,2.31707258]
[1735085485198,3.8069,197.01,196.91,12.25043473]
[1735085485586,3.93159,197.05,196.91,12.25043473]
[1735085485917,0.95180148,197.04,196.91,12.25043473]
[1735085486377,23.902374,197.03,196.88,144.7955]
[1735085486582,0.12549,197.01,196.89,10.69494148]
[1735085488702,3.8071,197.0,196.89,10.69494148]
[1735085489024,0.95198276,196.99,196.89,0.76157933]
[1735085489227,0.95198276,196.99,196.88,16.42886215]
[1735085489730,3.8074,196.98,196.89,0.76158925]
[1735085489909,4.7593737,196.98,196.89,0.76158925]
[1735085490219,4.7593737,196.98,196.9,9.93336215]
[1735085490220,3.8074,196.98,196.9,9.93336215]
[1735085490817,4.75886997,197.01,196.9,9.93336215]
[1735085493928,4.75886997,197.01,196.91,0.76150084]
[1735085496228,4.75886997,197.01,196.92,9.93336215]
[1735085497928,3.8069,197.01,196.93,10.69484746]
[1735085498239,3.8069,197.01,196.94,9.93336215]
[1735085498454,3.8069,197.01,196.93,0.76148531]
[1735085498455,3.8069,197.01,196.95,9.93336215]
[1735085499544,3.8061,197.05,196.96,9.93336215]
[1735085499700,3.8061,197.05,196.98,9.93336215]
[1735085499902,3.8056,197.08,196.99,9.93336215]
[1735085505437,3.8056,197.08,196.98,40.69451903]
[1735085506136,3.8056,197.08,196.99,9.93336215]
[1735085506939,31.69365705,197.11,197.02,9.93336215]
[1735085507138,31.69365705,197.11,197.03,0.76103005]
[1735085507621,31.69365705,197.11,197.03,10.6943922]
[1735085508441,31.69365705,197.11,197.04,9.93336215]
[1735085508607,27.88865705,197.11,197.05,9.93336215]
[1735085508813,3.8044,197.14,197.06,10.69426543]
[1735085509043,3.8044,197.14,197.07,9.93336215]
[1735085509537,3.8044,197.14,197.08,0.76086197]
[1735085509742,4.75487348,197.17,197.08,0.76086197]
[1735085510439,3.8038,197.17,197.08,0.76086197]
[1735085510748,3.8038,197.17,197.08,40.69422412]
[1735085510936,3.8038,197.17,197.09,9.93336215]
[1735085512421,3.8038,197.17,197.08,30.76086197]
[1735085513844,0.95099757,197.16,197.05,138.3]
[1735085514040,3.8042,197.15,197.05,138.3]
[1735085514209,3.8042,197.15,197.01,1.5076]
[1735085514210,0.12549,197.13,197.03,9.93336215]
[1735085514544,0.12549,197.13,197.02,9.93336215]
[1735085514730,0.12549,197.13,197.01,12.20199402]
[1735085515221,0.12549,197.13,197.02,9.93336215]
[1735085515422,3.8047,197.12,197.01,12.20199402]
[1735085515766,0.95134798,197.11,197.01,12.20199402]
[1735085516621,3.8047,197.12,197.01,12.20199402]
[1735085517017,3.8047,197.12,197.02,33.71024615]
[1735085517230,3.8047,197.12,196.97,6.3019]
[1735085517231,0.95132448,197.11,196.97,6.3019]
[1735085517438,6.45809,197.1,196.98,9.93336215]
[1735085517635,0.95154158,197.09,196.99,9.93336215]
[1735085518322,3.8055,197.08,196.99,9.93336215]
[1735085519528,0.95152217,197.07,196.99,9.93336215]
[1735085519827,4.75703473,197.08,196.99,9.93336215]
[1735085520152,4.75703473,197.08,196.95,0.76124066]
[1735085520356,4.75703473,197.08,196.98,9.93336215]
[1735085521659,3.8055,197.08,196.98,9.93336215]
[1735085521826,6.3326,197.1,197.0,9.93336215]
[1735085522026,7.28403564,197.1,197.0,9.93336215]
[1735085522249,3.8053,197.09,197.0,9.93336215]
[1735085522452,0.95157085,197.08,197.0,9.93336215]
[1735085523047,0.95157085,197.08,196.95,0.76116181]
[1735085523251,0.95157085,197.08,196.96,9.93336215]
[1735085523750,0.12549,197.07,196.96,9.93336215]
[1735085523950,3.8059,197.06,196.96,9.93336215]
[1735085524142,0.95170562,197.05,196.96,9.93336215]
[1735085525964,0.95170562,197.05,196.92,30.0]
[1735085525965,3.93199,197.04,196.92,30.0]
[1735085526163,0.95180198,197.03,196.94,9.93336215]
[1735085526363,0.95180198,197.03,196.93,9.93336215]
[1735085526739,0.95180198,197.03,196.92,39.93336215]
[1735085527344,6.1176,197.01,196.89,0.76144135]
[1735085527637,0.95200226,197.0,196.87,9.93336215]
[1735085527838,23.776884,196.99,196.85,2.3590018]
[1735085528055,0.95217271,196.98,196.85,2.3590018]
[1735085528461,0.95217271,196.98,196.8,194.43492768]
[1735085528462,23.776884,196.97,196.81,30.76174054]
[1735085528646,6.1176,196.94,196.8,57.73232768]
[1735085528849,0.95236424,196.93,196.8,57.73232768]
[1735085529059,0.95236424,196.93,196.8,56.13492768]
[1735085529262,3.8088,196.91,196.8,56.13492768]
[1735085529434,0.95257266,196.9,196.8,56.13492768]
[1735085530065,52.17989774,196.89,196.8,56.13492768]
[1735085530258,23.776884,196.87,196.8,56.13492768]
[1735085530441,0.95275827,196.86,196.8,56.13492768]
[1735085530962,0.12549,196.85,196.8,56.13492768]
[1735085531133,0.95275827,196.86,196.8,56.13492768]
[1735085531334,32.21231374,196.89,196.8,56.13492768]
[1735085531955,32.21231374,196.89,196.82,9.93336215]
[1735085531956,28.40301374,196.89,196.82,9.93336215]
[1735085532248,28.40301374,196.89,196.84,15.50007797]
[1735085533877,6.1176,196.94,196.85,16.26185188]
[1735085534556,3.8078,196.97,196.87,15.50007797]
[1735085534886,4.75985866,196.97,196.86,15.50007797]
[1735085538865,3.808,196.95,196.84,15.50007797]
[1735085539164,0.95221713,196.94,196.84,15.50007797]
[1735085539986,0.95223598,196.94,196.85,0.76178878]
[1735085540191,4.76016272,196.95,196.85,0.76178878]
[1735085541173,3.808,196.95,196.85,0.76178878]
[1735085541800,6.1176,196.98,196.88,15.50007797]
[1735085541983,7.06956741,196.98,196.88,16.2616519]
[1735085542301,6.1176,196.98,196.88,16.2616519]
[1735085542499,6.1176,196.98,196.88,46.2616519]
[1735085542699,6.1176,196.98,196.88,16.2616519]
[1735085543377,6.1176,196.98,196.88,46.2616519]
[1735085544603,3.8067,197.02,196.9,15.50007797]
[1735085544785,0.95183175,197.01,196.91,0.7614654]
[1735085544976,0.95183175,197.01,196.9,15.50007797]
[1735085547504,0.95183175,197.01,196.91,0.76146949]
[1735085547703,3.8071,197.0,196.9,45.50007797]
[1735085547875,4.75903241,197.0,196.9,45.50007797]
[1735085548511,0.12549,196.99,196.88,15.50007797]
[1735085548696,0.95208848,196.98,196.86,39.27696197]
[1735085549499,0.12549,196.97,196.85,0.7615199]
[1735085549701,3.8078,196.96,196.85,0.7615199]
[1735085549911,7.18772863,196.95,196.85,0.7615199]
[1735085550900,3.8078,196.96,196.85,0.7615199]
[1735085550901,10.99502306,196.99,196.88,15.50007797]
[1735085551108,0.12549,196.98,196.88,15.50007797]
[1735085551273,10.0429,196.99,196.89,16.26166586]